Cogmind - Beta 14 @@@ ROGUE MODE // 2024.09.19 @ 14:04:21 Player: DazzlePack Result: Destroyed by S-10 Pest with Light Assault Rifle Performance ------------- Evolutions (0) 0 Regions Visited (2) 400 Robots Destroyed (28) 140 Value Destroyed (675) 675 Prototype IDs (0) 0 Alien Tech Used (0) 0 Bonus (7) 7 TOTAL SCORE: 1222 Bonus ------- Follower Combat Kills 7 Cogmind --------- Core Integrity 0/250 Matter 295/300 Energy 160/160 System Corruption 0% Temperature Cool (6) Movement Walking (120) Location -10/Mines Parts ------- > --- POWER (1) -------- Light Nuclear Core > --- PROPULSION (2) --- Aluminum Leg Aluminum Leg > --- UTILITY (2) ------ Small Storage Unit Hacking Suite > --- WEAPON (2) ------- Light Assault Rifle Light Assault Rifle > --- INVENTORY (8) ---- Wheel Wheel Structural Scanner Signal Interpreter Weapon Shielding Light Armor Plating Rocket Launcher Datajack Peak State ------------ > --- POWER ------------ Light Nuclear Core > --- PROPULSION ------- Wheel Wheel > --- UTILITY ---------- Small Storage Unit Hacking Suite > --- WEAPON ----------- Light Assault Rifle Makeshift Spear > --- INVENTORY -------- Aluminum Leg Aluminum Leg Structural Scanner Signal Interpreter Weapon Shielding Light Armor Plating Rocket Launcher Datajack [Rating: 14] Favorites ----------- Power Light Ion Engine Engine Light Ion Engine Power Core Light Nuclear Core Propulsion Wheel Treads Light Treads Leg Aluminum Leg Wheel Wheel Flight Unit Flight Unit Utility Small Storage Unit Device Improved Terrain Scanner Storage Small Storage Unit Processor Terrain Scan Processor Hackware Hacking Suite Protection Utility Shielding Weapon Light Assault Rifle Energy Gun EM Pulse Gun Energy Cannon Beam Cannon Ballistic Gun Light Assault Rifle Launcher Grenade Launcher Special Weapon Welding Torch Piercing Weapon Makeshift Spear Special Melee Weapon Datajack Build | -11 -10 -10 ------- Run | Yrd Mat Min Slots Evolved . | . . . Power . | . . . Propulsion . | . . . Utility . | . . . Weapon . | . . . Parts Attached 93 | 8 64 21 Power 7 | 1 5 1 Engine 6 | 1 5 . Core 1 | . . 1 Reactor . | . . . Propulsion 22 | 3 10 9 Treads 1 | . 1 . Leg 7 | 2 . 5 Wheel 10 | 1 5 4 Hover . | . . . Flight 4 | . 4 . Utility 37 | 2 35 . Device 21 | 2 19 . Storage 11 | . 11 . Processor 3 | . 3 . Hackware 1 | . 1 . Protection 1 | . 1 . Artifact . | . . . Weapon 27 | 2 14 11 Energy Gun 8 | 2 5 1 Energy Cannon 1 | . 1 . Ballistic Gun 12 | . 5 7 Ballistic Cannon . | . . . Launcher 1 | . 1 . Special Weapon 1 | . 1 . Impact Weapon . | . . . Slashing Weapon . | . . . Piercing Weapon 1 | . . 1 Special Melee Weapon 3 | . 1 2 Unidentified Prototypes . | . . . Parts Lost 3 | . 1 2 Power . | . . . Propulsion 1 | . . 1 Utility . | . . . Weapon 2 | . 1 1 Highest Loss Streak 1 | . 1 1 To Critical Strikes . | . . . Average Slot Usage (%) 98 | . 98 99 Engine 10 | . 12 7 Core 2 | . . 6 Treads 1 | . 1 . Leg 3 | . 1 5 Wheel 16 | . 13 22 Flight 7 | . 10 . Device 8 | . 12 . Storage 9 | . 6 14 Processor 3 | . 5 . Hackware 6 | . 2 14 Energy Gun 7 | . 11 . Energy Cannon 2 | . 3 . Ballistic Gun 15 | . 9 27 Special Melee Weapon 2 | . 3 . Peak Build Rating 14 | 9 10 14 Average Rating 8 | 4 8 9 On Entrance 6 | . 9 9 Naked Turns . | . . . Heaviest Build 13 | 9 13 12 Greatest Support 20 | 10 20 20 Greatest Overweight (x) 2 | . 2 . Average Overweight (x) . | . . . Largest Inventory Capacity 15 | 5 15 8 Average Capacity 6 | 5 6 8 Most Carried 8 | 5 8 8 Average Carried 6 | 2 6 7 Final Capacity 8 | 5 8 8 Final Carried 8 | 5 8 8 Class Distribution -------------------- 50% | Mutant 49% | Scavenger-Mutant Dominant Class ---------------- Mutant | -10/Materials Scavenger-Mutant | -10/Mines Resources | -11 -10 -10 ----------- Run | Yrd Mat Min Matter Collected 1214 | 280 614 320 Remotely . | . . . Salvage Created 997 | 72 578 347 Parts 66 | 5 38 23 Haulers Intercepted . | . . . Recyclers Shooed . | . . . Parts Field Recycled . | . . . Retrieved Matter . | . . . Parts Self-Destructed . | . . . Prevented . | . . . Kills | -11 -10 -10 ------- Run | Yrd Mat Min Combat Hostiles Destroyed 20 | 1 8 11 Guns 20 | 1 8 11 Classes Destroyed 7 | 2 5 . Builder 1 | . 1 . Tunneler 1 | 1 . . Recycler 2 | . 2 . Operator 1 | . 1 . Watcher 3 | . 3 . Swarmer 7 | . 2 5 Grunt 13 | 1 6 6 Best Kill Streak 4 | 2 4 3 Combat Bots Only 3 | 1 2 3 Max Kills in Single Turn 1 | 1 1 1 Gunslinging . | . . . Exploded . | . . . Melee . | . . . Uniques/NPCs Destroyed . | . . . Combat | -11 -10 -10 -------- Run | Yrd Mat Min Hostile Shots Fired 94 | 2 37 55 Missed 23 | . 11 12 Damage Taken 777 | 20 271 486 Core 253 | 10 71 172 Absorbed by Shields . | . . . Core Remaining (%) 96 | 96 . . Volleys Fired 85 | 4 40 41 Largest 2 | 2 2 2 Hottest 90 | 80 90 40 Shots Fired 168 | 8 79 81 Gun 157 | 8 68 81 Cannon 11 | . 11 . Launcher . | . . . Special . | . . . Kinetic 101 | . 20 81 Thermal 26 | . 26 . Explosive . | . . . Electromagnetic 41 | 8 33 . Robot Hit Streak 11 | 3 11 11 Robot Miss Streak 4 | 1 4 3 Penetration Max . | . . . Secondary Targets . | . . . Shots Hit Robots 117 | 5 55 57 Core Hits 57 | 3 26 28 Critical Kills 1 | . . 1 Critical Parts Destroyed . | . . . Critical Strikes 1 | . . 1 Destroy 1 | . . 1 Melee Attacks 8 | . 6 2 Impact . | . . . Slashing . | . . . Piercing . | . . . Sneak Attacks 8 | . 6 2 Combat Hostiles . | . . . Follow-up Attacks . | . . . Damage Inflicted 1177 | 92 643 442 Guns 1030 | 69 519 442 Cannons 124 | . 124 . Explosions 23 | 23 . . Melee . | . . . Ramming . | . . . Kinetic 533 | . 91 442 Thermal 272 | 23 249 . Explosive . | . . . Electromagnetic 372 | 69 303 . Impact . | . . . Slashing . | . . . Piercing . | . . . Highest Corruption . | . . . Average Corruption . | . . . Corruption Purged . | . . . Corruption Blocked . | . . . Overload Shots . | . . . Overflow Damage . | . . . Projectiles . | . . . Explosions . | . . . Melee . | . . . Knockbacks . | . . . Impact . | . . . Kinetic . | . . . Secondary . | . . . Self-Inflicted Damage . | . . . Shots . | . . . Rammed . | . . . Targets Rammed . | . . . Kicked . | . . . Crushed . | . . . Highest Temperature 211 | 78 211 18 Average Temperature 55 | 42 71 7 Received Heat Transfer 327 | 12 108 207 Siege Activations . | . . . Robots Corrupted . | . . . Combat Hostiles . | . . . Parts Fried . | . . . Impact Corruptions . | . . . Robots Melted . | . . . Combat Hostiles . | . . . Parts Melted . | . . . Heat Transferred 679 | 50 629 . Parts Sabotaged . | . . . Parts Stolen . | . . . Parts Stripped . | . . . Power Chain Reactions 1 | 1 . . Alert | -11 -10 -10 ------- Run | Yrd Mat Min Peak Influence 288 | 25 233 288 Initial 28 | . 16 28 Average 151 | 8 130 214 Maximum Alert Level 1 | . 1 1 Low Security (%) 62 | 100 70 41 Level 1 37 | . 29 58 Level 2 . | . . . Level 3 . | . . . Level 4 . | . . . Level 5 . | . . . High Security . | . . . Max Security . | . . . Squads Dispatched 1 | . 1 . Investigation . | . . . Extermination . | . . . Reinforcement 1 | . 1 . Assault . | . . . Garrison . | . . . Intercept . | . . . Searches Triggered . | . . . Construction Impeded . | . . . Haulers Reinforced . | . . . Active Scanning Responses . | . . . Cargo Convoy Interrupts . | . . . Stealth | -11 -10 -10 --------- Run | Yrd Mat Min Distress Signals 2 | . 2 . Communications Jammed . | . . . Distress Signals . | . . . Times Spotted 36 | 1 18 17 Peak Tracking Total 5 | 1 5 3 Tactical Retreats 4 | . 1 3 Traps | -11 -10 -10 ------- Run | Yrd Mat Min Traps Triggered . | . . . Indirectly . | . . . Trap Hack Attempts 8 | . 8 . Triggered . | . . . Disarmed . | . . . Reprogrammed 1 | . 1 . Reused . | . . . Traps Extracted . | . . . Installed . | . . . Triggered . | . . . Machines | -11 -10 -10 ---------- Run | Yrd Mat Min Machines Disabled 1 | . 1 . Max in Single Turn 1 | . 1 . Machines Repaired . | . . . Machines Dismantled . | . . . Machines Sabotaged . | . . . Overloaded Fab Kills . | . . . Hacking | -11 -10 -10 --------- Run | Yrd Mat Min Machines Accessed 9 | . 9 . Terminals 7 | . 7 . Fabricators . | . . . Repair Stations . | . . . Recycling Units 2 | . 2 . Scanalyzers . | . . . Garrison Access . | . . . Total Hacks 35 | . 35 . Successful 20 | . 20 . Failed 15 | . 15 . Catastrophic 2 | . 2 . Database Lockouts . | . . . Manual 10 | . 10 . Terminals 29 | . 29 . Fabricators . | . . . Repair Stations . | . . . Recycling Units 6 | . 6 . Scanalyzers . | . . . Garrison Access . | . . . Terminal Hacks 16 | . 16 . Record 11 | . 11 . Branch Access Points 1 | . 1 . Emergency Access Points 1 | . 1 . Alert Level 1 | . 1 . Locate Traps 2 | . 2 . Fabricator Hacks . | . . . Repair Station Hacks . | . . . Recycling Unit Hacks 4 | . 4 . Report Inventory 2 | . 2 . Retrieve Components 2 | . 2 . Scanalyzer . | . . . Garrison Access Hacks . | . . . Unauthorized Hacks . | . . . Terminals . | . . . Fabricators . | . . . Repair Stations . | . . . Recycling Units . | . . . Scanalyzers . | . . . Garrison Access . | . . . Data Cores Recovered . | . . . Used . | . . . Hacking Detections 7 | . 7 . Full Trace Events . | . . . Feedback Events . | . . . Feedback Blocked . | . . . Robot Schematics Acquired . | . . . Robots Built . | . . . Authchips . | . . . Time . | . . . Total Robot Build Rating . | . . . Part Schematics Acquired . | . . . Parts Built . | . . . Authchips . | . . . Time . | . . . Total Part Build Rating . | . . . Parts Repaired . | . . . Time . | . . . Parts Recycled . | . . . Recycled Matter . | . . . Retrieved Matter . | . . . Retrieved Components 18 | . 18 . Parts Scanalyzed . | . . . Part Schematics Acquired . | . . . Parts Damaged . | . . . Bothacking | -11 -10 -10 ------------ Run | Yrd Mat Min Used RIF Installer . | . . . Robots Hacked 6 | . 4 2 Non-combat 4 | . 4 . Combat 2 | . . 2 Robot Hacks Applied 8 | . 6 2 parse_system 8 | . 6 2 Relay Couplers Released . | . . . Fabnet Peak Effective % . | . . . Robots Rewired . | . . . Allies Hacked . | . . . Hacks Repelled . | . . . Allies | -11 -10 -10 -------- Run | Yrd Mat Min Total Allies 1 | . . 1 Largest Group 1 | . . 1 Highest-Rated Group 31 | . . 31 Highest-Rated Ally 31 | . . 31 Total Orders . | . . . Ally Attacks 7 | . . 7 Total Damage 62 | . . 62 Kills 1 | . . 1 Allies Corrupted . | . . . Allies Melted . | . . . Intel | -11 -10 -10 ------- Run | Yrd Mat Min Robot Analysis Total . | . . . Derelict Logs Recovered 1 | . . 1 Drone Launches . | . . . Drone Recoveries . | . . . Exploration | -11 -10 -10 ------------- Run | Yrd Mat Min Turns Passed 1457 | 66 921 470 Spaces Moved 1469 | 60 1050 359 Core 48 | 47 1 . Treads . | . . . Legs 48 | 6 . 42 Wheels 792 | 7 468 317 Hover . | . . . Flight 581 | . 581 . Fastest Speed 37 | 50 37 80 Average Speed 63 | 60 56 84 Slowest Speed 150 | 120 150 120 Overloaded Moves . | . . . Propulsion Burnouts . | . . . Robots Hopped . | . . . Cave-ins Triggered . | . . . Exploration Rate (%) 56 | 5 99 66 Regions Visited 2 Branch Regions 1 Pre-discovered Areas 1 | . . 1 Known Exits Taken 1 | . 1 . Unknown Exits Taken 1 | 1 . . Scrap Searched 1 | . . 1 Spaces Dug . | . . . Terrain Destroyed . | . . . Melee . | . . . Projectile . | . . . AOE . | . . . Terrain Rammed . | . . . Walls Destroyed . | . . . Machines Disabled . | . . . Actions | -11 -10 -10 --------- Run | Yrd Mat Min Total 1841 | 79 1306 456 Wait 59 | . 41 18 Move 1467 | 59 1049 359 Hop . | . . . Pick Up 46 | 8 33 5 Fast Attach 41 | 4 30 7 Attach 15 | 3 10 2 Detach 7 | . 7 . Swap 37 | 1 24 12 Drop 68 | . 58 10 Fire 85 | 4 40 41 Melee 8 | . 6 2 Ram . | . . . Kick . | . . . Crush . | . . . Escape Stasis . | . . . Rewire . | . . . Trap 8 | . 8 . Miscellaneous . | . . . Route ------- -11/Scrapyard -10/Materials (discovered 5 exits: [*Mat x3] / *Min / [*Sub]) -10/Mines (discovered 2 exits: [*Mat x2]) History --------- Turn | Location | Event 2 | -11/Scrapyard | Met Revision 17 34 | -11/Scrapyard | Discovered new exit (range 8) 67 | -11/Scrapyard | Entered Materials 261 | -10/Materials | Discovered new exit (range 8) 318 | -10/Materials | Discovered new exit (range 9) 331 | -10/Materials | Build established: Mutant 366 | -10/Materials | Discovered new exit (range 12) 471 | -10/Materials | Discovered new exit (range 16) 546 | -10/Materials | Identified exit to Mines 605 | -10/Materials | Discovered new exit (range 16) 988 | -10/Materials | Entered Mines 1028 | -10/Mines | Learned location of Mines (-9) 1083 | -10/Mines | Discovered new exit (range 10) 1100 | -10/Mines | Core integrity fell below 50% 1189 | -10/Mines | Received a Rocket Launcher from a helpful Derelict 1211 | -10/Mines | Core integrity fell below 20% 1256 | -10/Mines | A weapon hastily lodged in a ceiling crevice suddenly fell to the ground 1278 | -10/Mines | Discovered new exit (range 11) 1301 | -10/Mines | Build established: Scavenger-Mutant 1377 | -10/Mines | Received a Mining Laser from a helpful Derelict 1458 | -10/Mines | Destroyed by S-10 Pest with Light Assault Rifle Last Messages --------------- 01360_ K-01 Serf collects debris. 01375_ A derelict emerges from the shadows: "What are you doing alone down here?" 01377_ C9-21H(g): "And why aren't you carrying a mining laser?! Certainly you don't want THEM to uncover you when the ceiling comes crashing down? Here, take my spare." 01380_ C9-21H(g): "You're apparently new around these parts, I'll cover you." Move into an ally to swap places with them. 01384_ Sneak attack on C9-21H(g). 01384_ Jacked C9-21H(g)... >>parse_system Reading system data... 01389_ C9-21H(g): "Mining lasers are a lot more useful than you might think..." 01417_ C9-21H(g) destroyed. 01421_ S-10 Pest destroyed. 01438_ Acquired 77 matter. 01440_ Acquired 14 matter. Map ----- +----------------------------------------------------+ | #?????## ##?# ?????????????? | | ####### ## ?????????????? | | #??????????????? | | #???????????????? | | ####### #???????????????? | | ??????# #????????????????? | | ??????## ##????????????????? | | ???????# ####???????????????? | | ??????## ##? ???????????????? | | ??????# ##??? ??????????????? | | ??????# ##???? #?????????????? | | ??????# ### ##??? #######??????? | | ??????# #?# #???? ##?????? | | ??????# #?# #????? #?????? | | ?????## #?# ##?????# #?????? | | ???### ##?# ###??????# #??????? | | ?### = ##??# ########## #???????? | | ## #???# | #???????? | | # #???# #???????? | | ##???########### ## ##???????? | | = ####??????????????# #####????????? | | =* ##?????????????????# #????????????? | | # ##??????????????????#*###??????????? | | #%#???????????????????#%**#??????????? | | [#???????????????????###!#??????????? | | ###?????????????????????#@########???? | | ???????????????? ??????#=## #???? | | ######????????? """ ###s## #???? | | # ##???????? """ s #???? | | #???????# ###### """ #???? | | #???????# ?????????# """ #???? | | ##????????????????????# """ #???? | | ######?????????????????????#######???? | | ?????????????????????????????????????? | | ?????????????????????????????????????? | | ?????????????????????????????????????? | | ?????????????????????????????????????? | | ?????????????????????????????????????? | | ?????????????????????????????????????? | | ?????????????????????????????????????? | | | | | | | | | | | | | | | | | | | | | +----------------------------------------------------+ Best States ------------- Heat Dissipation 35 Energy Generation 14 Energy Capacity 160 Matter Stores 300 Matter Capacity 300 Sight Range 16 Terrain Scan Range 16 Terrain Scan Density 85 Utility Shielding 33 Evasion (%) 62 Offensive Hacking 10 Item Schematics ----------------- None Robot Schematics ------------------ None Fabricated ------------ Nothing Alien Tech Used ----------------- None Achievements -------------- None Challenges ------------ None Game ------ Seed ThermicPitchforkFragment Manual? 0 Play Time 03:45:51 Cumulative 3.3 hours Start 2024.09.19 @ 02:34:48 End 2024.09.19 @ 14:04:21 Sessions 8 Manual Loads 0 Difficulty Rogue Special Mode None Game No. 1 Rogue 1 Adventurer 0 Explorer 0 Win Type - Total 0 Types 0/0/0/0/0/0/0/0/0 Lore% 1 Gallery% 3 Achievement% 8 Wizard Run 0 Options --------- Layout 1 ASCII 0 Keyboard 0 Movement Numpad Keybinds 0 Fullscreen 1 Font 24/Terminus Map View 50x35 Zoom Use 40% Tactical HUD 1 Map Filters NONE Filters NONE Steam 1 RUN: 5b4144af-c014-4561-a8b6-2a459f2fb3f2